[Event "*** Titled Tuesday Blitz"]
[Site "Chess.com"]
[Date "2019.07.02"]
[Round "1"]
[White "sebsep"]
[Black "ENEASZ"]
[Result "1-0"]
[WhiteElo "2146"]
[BlackElo "2516"]
[TimeControl "180+2"]
[EndTime "13:08:15 PDT"]
[Termination "sebsep won by checkmate"]

1. e4 {[%clk 0:03:01.7]} 1... e5 {[%clk 0:02:59.3]} 2. Nf3 {[%clk 0:03:01.9]}
2... Nc6 {[%clk 0:03:00]} 3. Bc4 {[%clk 0:03:03.2]} 3... Nf6 {[%clk 0:02:59.5]}
4. d3 {[%clk 0:03:04.1]} 4... h6 {[%clk 0:02:54.7]} 5. c3 {[%clk 0:03:00.6]}
5... d6 {[%clk 0:02:55.3]} 6. Nbd2 {[%clk 0:02:54]} 6... g5 {[%clk 0:02:53]} 7.
Bb3 {[%clk 0:02:41.3]} 7... Bg7 {[%clk 0:02:53.2]} 8. Nc4 {[%clk 0:02:41.4]}
8... O-O {[%clk 0:02:51.8]} 9. Ne3 {[%clk 0:02:41.9]} 9... Ne7 {[%clk
0:02:51.9]} 10. h4 {[%clk 0:02:37.4]} 10... g4 {[%clk 0:02:52.6]} 11. Nd2 {[%clk
0:02:38.2]} 11... Ng6 {[%clk 0:02:44.6]} 12. g3 {[%clk 0:02:38.4]} 12... h5
{[%clk 0:02:42.9]} 13. Ndc4 {[%clk 0:02:36]} 13... c6 {[%clk 0:02:41.7]} 14. Nf5
{[%clk 0:02:21.1]} 14... Bxf5 {[%clk 0:02:40.5]} 15. exf5 {[%clk 0:02:21.6]}
15... Ne7 {[%clk 0:02:42.4]} 16. Ne3 {[%clk 0:02:22.8]} 16... d5 {[%clk
0:02:37.8]} 17. d4 {[%clk 0:02:21.2]} 17... e4 {[%clk 0:02:38.7]} 18. c4 {[%clk
0:02:19.3]} 18... Qd7 {[%clk 0:02:38.6]} 19. cxd5 {[%clk 0:02:19.9]} 19... cxd5
{[%clk 0:02:36.4]} 20. Ba4 {[%clk 0:02:19.6]} 20... b5 {[%clk 0:02:37.2]} 21.
Bb3 {[%clk 0:02:17.7]} 21... Nxf5 {[%clk 0:02:35.6]} 22. Nxf5 {[%clk 0:02:17.4]}
22... Qxf5 {[%clk 0:02:37.5]} 23. O-O {[%clk 0:02:14.3]} 23... a5 {[%clk
0:02:36]} 24. a4 {[%clk 0:02:10]} 24... b4 {[%clk 0:02:36.9]} 25. Qe2 {[%clk
0:02:10.3]} 25... Rfc8 {[%clk 0:01:57.9]} 26. Bg5 {[%clk 0:02:05.2]} 26... Ne8
{[%clk 0:01:52]} 27. Be3 {[%clk 0:01:30.5]} 27... Nd6 {[%clk 0:01:51]} 28. Rac1
{[%clk 0:01:31.3]} 28... Qe6 {[%clk 0:01:33]} 29. Rxc8+ {[%clk 0:01:21.7]} 29...
Rxc8 {[%clk 0:01:34.9]} 30. Qa6 {[%clk 0:01:22.8]} 30... Nc4 {[%clk 0:01:30.7]}
31. Bxc4 {[%clk 0:01:23.6]} 31... dxc4 {[%clk 0:01:13.9]} 32. Qxa5 {[%clk
0:01:23.9]} 32... c3 {[%clk 0:01:14.1]} 33. Qxb4 {[%clk 0:01:21.1]} 33... c2
{[%clk 0:01:11.5]} 34. Rc1 {[%clk 0:01:21.5]} 34... Bf8 {[%clk 0:00:58.8]} 35.
Qb5 {[%clk 0:01:19]} 35... Qc4 {[%clk 0:00:38]} 36. Qxh5 {[%clk 0:01:15.8]}
36... Bg7 {[%clk 0:00:37.4]} 37. Qxg4 {[%clk 0:01:13.7]} 37... Rb8 {[%clk
0:00:35.6]} 38. Bh6 {[%clk 0:01:10]} 38... Qxd4 {[%clk 0:00:35.7]} 39. Bxg7
{[%clk 0:01:04.9]} 39... Qxg7 {[%clk 0:00:37.6]} 40. Qxe4 {[%clk 0:01:00.2]}
40... Rxb2 {[%clk 0:00:34.3]} 41. Rxc2 {[%clk 0:01:01.1]} 41... Rb1+ {[%clk
0:00:35.6]} 42. Kg2 {[%clk 0:01:01.8]} 42... Qa1 {[%clk 0:00:35.4]} 43. Rc8+
{[%clk 0:01:00]} 43... Kg7 {[%clk 0:00:36.4]} 44. Qg4+ {[%clk 0:00:56.1]} 44...
Kf6 {[%clk 0:00:36.5]} 45. Qg5+ {[%clk 0:00:53.9]} 45... Ke6 {[%clk 0:00:37.4]}
46. Rc6+ {[%clk 0:00:52.1]} 46... Kd7 {[%clk 0:00:37.8]} 47. Qd5+ {[%clk
0:00:53.2]} 47... Ke7 {[%clk 0:00:39.3]} 48. Rc7+ {[%clk 0:00:53.2]} 48... Kf6
{[%clk 0:00:39.2]} 49. Rxf7+ {[%clk 0:00:53.9]} 49... Kg6 {[%clk 0:00:40]} 50.
Qf5+ {[%clk 0:00:55.3]} 50... Kh6 {[%clk 0:00:41.6]} 51. Rh7# {[%clk 0:00:56.2]}
1-0

[Event "*** Titled Tuesday Blitz"]
[Site "Chess.com"]
[Date "2019.07.02"]
[Round "1"]
[White "FMJoseHerrera"]
[Black "Kawhi_Leonard2"]
[Result "1-0"]
[WhiteElo "2663"]
[BlackElo "2317"]
[TimeControl "180+2"]
[EndTime "13:08:16 PDT"]
[Termination "FMJoseHerrera won on time"]

1. Nf3 {[%clk 0:02:59.1]} 1... Nf6 {[%clk 0:03:00.1]} 2. g3 {[%clk 0:02:56.2]}
2... e6 {[%clk 0:03:01.2]} 3. Bg2 {[%clk 0:02:56.9]} 3... d5 {[%clk 0:03:02.9]}
4. d3 {[%clk 0:02:57.8]} 4... Be7 {[%clk 0:03:04.2]} 5. c3 {[%clk 0:02:58.6]}
5... O-O {[%clk 0:03:05.1]} 6. O-O {[%clk 0:02:54.6]} 6... c5 {[%clk 0:03:05.9]}
7. a3 {[%clk 0:02:55.9]} 7... b6 {[%clk 0:02:54.8]} 8. b4 {[%clk 0:02:55.7]}
8... a5 {[%clk 0:02:50.1]} 9. bxc5 {[%clk 0:02:46.2]} 9... bxc5 {[%clk
0:02:49.3]} 10. Bf4 {[%clk 0:02:42.1]} 10... Nc6 {[%clk 0:02:45.7]} 11. a4
{[%clk 0:02:36.4]} 11... Bd6 {[%clk 0:02:42.4]} 12. Bg5 {[%clk 0:02:32.7]} 12...
h6 {[%clk 0:02:40.9]} 13. Bd2 {[%clk 0:02:33.1]} 13... Rb8 {[%clk 0:02:37.6]}
14. Na3 {[%clk 0:02:34.3]} 14... Ba6 {[%clk 0:02:32.2]} 15. Qc2 {[%clk
0:02:33.3]} 15... Qe7 {[%clk 0:02:22.6]} 16. Rfb1 {[%clk 0:02:33.2]} 16... Na7
{[%clk 0:02:00.2]} 17. c4 {[%clk 0:02:24]} 17... Rb4 {[%clk 0:01:47.1]} 18. Bxb4
{[%clk 0:02:22.7]} 18... cxb4 {[%clk 0:01:47.7]} 19. Nb5 {[%clk 0:02:23.6]}
19... Rc8 {[%clk 0:01:42.4]} 20. Nd2 {[%clk 0:02:04]} 20... Bc5 {[%clk
0:01:33.3]} 21. e3 {[%clk 0:01:51]} 21... dxc4 {[%clk 0:01:27]} 22. Nxc4 {[%clk
0:01:48.2]} 22... Qd8 {[%clk 0:00:55.9]} 23. Rc1 {[%clk 0:01:39]} 23... Bxb5
{[%clk 0:00:49.7]} 24. axb5 {[%clk 0:01:38.5]} 24... Nxb5 {[%clk 0:00:50.8]} 25.
Nxa5 {[%clk 0:01:31.1]} 25... Nc3 {[%clk 0:00:47.6]} 26. Nb7 {[%clk 0:01:31.5]}
26... Qb6 {[%clk 0:00:47.6]} 27. Nxc5 {[%clk 0:01:32.5]} 27... Qxc5 {[%clk
0:00:42.8]} 28. d4 {[%clk 0:01:31.7]} 28... Qh5 {[%clk 0:00:42.4]} 29. Re1
{[%clk 0:01:07.6]} 29... Qb5 {[%clk 0:00:38.5]} 30. Qb3 {[%clk 0:01:05.5]} 30...
Nfd5 {[%clk 0:00:21.9]} 31. Bf1 {[%clk 0:01:02.9]} 31... Qc6 {[%clk 0:00:13.5]}
32. Rac1 {[%clk 0:01:01.5]} 32... Qb6 {[%clk 0:00:03.4]} 33. Bc4 {[%clk
0:00:54.2]} 33... Ra8 {[%clk 0:00:03.9]} 34. e4 {[%clk 0:00:52.5]} 34... Ra3
{[%clk 0:00:04.1]} 35. Qb2 {[%clk 0:00:50.1]} 35... Nf6 {[%clk 0:00:05.4]} 36.
d5 {[%clk 0:00:50.5]} 36... exd5 {[%clk 0:00:06]} 37. exd5 {[%clk 0:00:51.6]}
37... Nfxd5 {[%clk 0:00:07.2]} 38. Qc2 {[%clk 0:00:36.4]} 38... g6 {[%clk
0:00:04.5]} 39. Qd3 {[%clk 0:00:34.8]} 1-0

[Event "*** Titled Tuesday Blitz"]
[Site "Chess.com"]
[Date "2019.07.02"]
[Round "1"]
[White "XiaoKangZhong"]
[Black "x-3738459472"]
[Result "0-1"]
[WhiteElo "2249"]
[BlackElo "2608"]
[TimeControl "180+2"]
[EndTime "13:08:19 PDT"]
[Termination "x-3738459472 won by checkmate"]

1. e4 {[%clk 0:01:44.8]} 1... c5 {[%clk 0:02:59.8]} 2. Nf3 {[%clk 0:01:43.2]}
2... Nc6 {[%clk 0:03:00]} 3. Bb5 {[%clk 0:01:43.4]} 3... d6 {[%clk 0:03:00.7]}
4. O-O {[%clk 0:01:44]} 4... Bd7 {[%clk 0:03:01.3]} 5. Re1 {[%clk 0:01:44.4]}
5... Nf6 {[%clk 0:03:02.1]} 6. Bf1 {[%clk 0:01:43.9]} 6... g6 {[%clk 0:02:58.8]}
7. c3 {[%clk 0:01:45.1]} 7... Bg7 {[%clk 0:02:59.5]} 8. d4 {[%clk 0:01:46.3]}
8... O-O {[%clk 0:02:59.5]} 9. d5 {[%clk 0:01:42.1]} 9... Nb8 {[%clk 0:02:59.1]}
10. a4 {[%clk 0:01:42.6]} 10... e5 {[%clk 0:02:54]} 11. Nbd2 {[%clk 0:01:39.6]}
11... Ne8 {[%clk 0:02:48.5]} 12. Nc4 {[%clk 0:01:37.3]} 12... h6 {[%clk
0:02:48.8]} 13. Qb3 {[%clk 0:01:37]} 13... b6 {[%clk 0:02:45.6]} 14. Ncd2 {[%clk
0:01:22.9]} 14... f5 {[%clk 0:02:44.2]} 15. a5 {[%clk 0:01:21.6]} 15... bxa5
{[%clk 0:02:22.5]} 16. Qb7 {[%clk 0:01:10.3]} 16... Qb6 {[%clk 0:02:02.7]} 17.
Qxa8 {[%clk 0:00:52.6]} 17... Nc7 {[%clk 0:02:01.6]} 18. Nc4 {[%clk 0:00:53.7]}
18... Nxa8 {[%clk 0:01:58.6]} 19. Nxb6 {[%clk 0:00:52.6]} 19... axb6 {[%clk
0:02:00.5]} 20. Nd2 {[%clk 0:00:49.4]} 20... Bf6 {[%clk 0:01:46.9]} 21. Nc4
{[%clk 0:00:47.3]} 21... Be7 {[%clk 0:01:44.7]} 22. Bxh6 {[%clk 0:00:47.8]}
22... Rc8 {[%clk 0:01:42.2]} 23. Bd2 {[%clk 0:00:47]} 23... a4 {[%clk
0:01:38.6]} 24. Na3 {[%clk 0:00:44.4]} 24... fxe4 {[%clk 0:01:36.9]} 25. c4
{[%clk 0:00:41.8]} 25... Na6 {[%clk 0:01:33.6]} 26. Nb5 {[%clk 0:00:41.2]} 26...
N6c7 {[%clk 0:01:23.6]} 27. Rxa4 {[%clk 0:00:34.6]} 27... Nxb5 {[%clk
0:01:24.7]} 28. cxb5 {[%clk 0:00:35.7]} 28... Nc7 {[%clk 0:01:26.6]} 29. Ra7
{[%clk 0:00:36.6]} 29... Kf8 {[%clk 0:01:25.3]} 30. Rxe4 {[%clk 0:00:27.5]}
30... Bf5 {[%clk 0:01:23.6]} 31. Rea4 {[%clk 0:00:24.4]} 31... Nxd5 {[%clk
0:01:21.1]} 32. Bc4 {[%clk 0:00:24.2]} 32... Nc7 {[%clk 0:01:20.6]} 33. Rb7
{[%clk 0:00:24.6]} 33... d5 {[%clk 0:01:21.8]} 34. Bf1 {[%clk 0:00:25.5]} 34...
c4 {[%clk 0:01:17]} 35. Rxb6 {[%clk 0:00:22.2]} 35... Bd7 {[%clk 0:01:11.7]} 36.
Ra7 {[%clk 0:00:21.5]} 36... Bc5 {[%clk 0:01:12]} 37. Rbb7 {[%clk 0:00:22.2]}
37... Bxa7 {[%clk 0:01:13.1]} 38. Rxa7 {[%clk 0:00:23.8]} 38... Bxb5 {[%clk
0:01:14.2]} 39. Rb7 {[%clk 0:00:25]} 39... Ke7 {[%clk 0:01:12.2]} 40. Ba5 {[%clk
0:00:25.6]} 40... Kd7 {[%clk 0:01:07.9]} 41. Bxc7 {[%clk 0:00:26.7]} 41... Bc6
{[%clk 0:01:06.2]} 42. Rb8 {[%clk 0:00:22]} 42... Rxc7 {[%clk 0:01:06.8]} 43.
Rg8 {[%clk 0:00:22.7]} 43... Rb7 {[%clk 0:01:07]} 44. Rxg6 {[%clk 0:00:22]}
44... Rxb2 {[%clk 0:01:07.8]} 45. Rg7+ {[%clk 0:00:23.5]} 45... Kd6 {[%clk
0:01:08.7]} 46. h4 {[%clk 0:00:24.1]} 46... c3 {[%clk 0:01:09.5]} 47. Bd3 {[%clk
0:00:25.3]} 47... e4 {[%clk 0:01:10.9]} 48. Rg6+ {[%clk 0:00:25.8]} 48... Kc5
{[%clk 0:01:11.7]} 49. Bc2 {[%clk 0:00:27.4]} 49... Rxc2 {[%clk 0:01:12.6]} 50.
h5 {[%clk 0:00:29.3]} 50... Ra2 {[%clk 0:01:12.4]} 51. h6 {[%clk 0:00:30.4]}
51... c2 {[%clk 0:01:13.6]} 52. Kh2 {[%clk 0:00:30.9]} 52... c1=Q {[%clk
0:01:14.1]} 53. h7 {[%clk 0:00:32.5]} 53... Qf4+ {[%clk 0:01:15.1]} 54. Kh3
{[%clk 0:00:32.2]} 54... Bd7+ {[%clk 0:01:14.8]} 55. g4 {[%clk 0:00:33.4]} 55...
Rxf2 {[%clk 0:01:12.8]} 56. Rc6+ {[%clk 0:00:33.9]} 56... Bxc6 {[%clk
0:01:13.4]} 57. h8=Q {[%clk 0:00:35.1]} 57... Rh2# {[%clk 0:01:15.3]} 0-1

[Event "*** Titled Tuesday Blitz"]
[Site "Chess.com"]
[Date "2019.07.02"]
[Round "1"]
[White "GeorgeTen"]
[Black "shnitez"]
[Result "1-0"]
[WhiteElo "2257"]
[BlackElo "2554"]
[TimeControl "180+2"]
[EndTime "13:08:20 PDT"]
[Termination "GeorgeTen won on time"]

1. d4 {[%clk 0:03:00.4]} 1... Nf6 {[%clk 0:03:00.4]} 2. Nf3 {[%clk 0:03:01.9]}
2... c5 {[%clk 0:03:00.8]} 3. d5 {[%clk 0:03:01]} 3... b5 {[%clk 0:03:00.7]} 4.
c4 {[%clk 0:02:49.4]} 4... bxc4 {[%clk 0:02:56.7]} 5. Nc3 {[%clk 0:02:50.8]}
5... d6 {[%clk 0:02:43.5]} 6. e4 {[%clk 0:02:50.8]} 6... Ba6 {[%clk 0:02:38.2]}
7. Qa4+ {[%clk 0:02:24.8]} 7... Qd7 {[%clk 0:02:33.1]} 8. Qa5 {[%clk 0:02:25.7]}
8... e6 {[%clk 0:02:12.3]} 9. Bg5 {[%clk 0:02:17.2]} 9... Be7 {[%clk 0:02:09]}
10. Bf4 {[%clk 0:01:49.6]} 10... O-O {[%clk 0:01:56.3]} 11. Be2 {[%clk
0:01:50.9]} 11... exd5 {[%clk 0:01:39.5]} 12. exd5 {[%clk 0:01:49.3]} 12... Qd8
{[%clk 0:01:32.2]} 13. Qa4 {[%clk 0:01:41.3]} 13... Nfd7 {[%clk 0:01:32.2]} 14.
O-O {[%clk 0:01:29.2]} 14... Nb6 {[%clk 0:01:32.6]} 15. Qc2 {[%clk 0:01:30.8]}
15... N8d7 {[%clk 0:01:29.6]} 16. Rfe1 {[%clk 0:01:24.9]} 16... Re8 {[%clk
0:01:23.2]} 17. Qf5 {[%clk 0:01:21.9]} 17... Nf6 {[%clk 0:01:21.3]} 18. Rad1
{[%clk 0:01:17.8]} 18... Qd7 {[%clk 0:01:21.4]} 19. Qc2 {[%clk 0:00:54.6]} 19...
Bf8 {[%clk 0:01:19.3]} 20. h3 {[%clk 0:00:53.4]} 20... h6 {[%clk 0:01:16.2]} 21.
Bg3 {[%clk 0:00:48.6]} 21... Bb7 {[%clk 0:01:10.6]} 22. Nd2 {[%clk 0:00:40.7]}
22... Nfxd5 {[%clk 0:01:08.6]} 23. Nxc4 {[%clk 0:00:41]} 23... Nxc4 {[%clk
0:00:56.2]} 24. Bxc4 {[%clk 0:00:41.3]} 24... Nb6 {[%clk 0:00:55.7]} 25. Bd3
{[%clk 0:00:23.6]} 25... d5 {[%clk 0:00:52.1]} 26. Bf5 {[%clk 0:00:24.4]} 26...
Qc6 {[%clk 0:00:49.8]} 27. f3 {[%clk 0:00:23.7]} 27... g6 {[%clk 0:00:44.4]} 28.
Bd3 {[%clk 0:00:23.2]} 28... c4 {[%clk 0:00:43.7]} 29. Bf1 {[%clk 0:00:24.8]}
29... d4 {[%clk 0:00:42.7]} 30. Ne4 {[%clk 0:00:23]} 30... Bg7 {[%clk
0:00:37.8]} 31. Qc1 {[%clk 0:00:19]} 31... Rad8 {[%clk 0:00:36.9]} 32. Bf2
{[%clk 0:00:18.8]} 32... f5 {[%clk 0:00:34.9]} 33. Ng3 {[%clk 0:00:18.1]} 33...
Kh7 {[%clk 0:00:35.7]} 34. Rxe8 {[%clk 0:00:16.7]} 1-0

[Event "*** Titled Tuesday Blitz"]
[Site "Chess.com"]
[Date "2019.07.02"]
[Round "1"]
[White "StephenDedalus83"]
[Black "LucaBrasi1968"]
[Result "1-0"]
[WhiteElo "2808"]
[BlackElo "2425"]
[TimeControl "180+2"]
[EndTime "13:08:29 PDT"]
[Termination "StephenDedalus83 won by resignation"]

1. e4 {[%clk 0:03:01.5]} 1... c6 {[%clk 0:03:00.4]} 2. d4 {[%clk 0:03:01.6]}
2... d5 {[%clk 0:03:02.3]} 3. e5 {[%clk 0:03:02.8]} 3... Bf5 {[%clk 0:03:02.8]}
4. h4 {[%clk 0:03:03.8]} 4... h5 {[%clk 0:03:03.2]} 5. Bd3 {[%clk 0:03:04.7]}
5... Bxd3 {[%clk 0:03:03.7]} 6. Qxd3 {[%clk 0:03:05.7]} 6... e6 {[%clk
0:03:05.1]} 7. Bg5 {[%clk 0:03:06.7]} 7... Be7 {[%clk 0:03:05.9]} 8. Nf3 {[%clk
0:03:06.5]} 8... Nh6 {[%clk 0:03:02.9]} 9. Nc3 {[%clk 0:02:46.7]} 9... Nf5
{[%clk 0:03:02.9]} 10. Ne2 {[%clk 0:02:46.7]} 10... Nd7 {[%clk 0:02:58.4]} 11.
Nf4 {[%clk 0:02:37.7]} 11... g6 {[%clk 0:02:51.4]} 12. c3 {[%clk 0:02:27.2]}
12... Rc8 {[%clk 0:02:48.8]} 13. g3 {[%clk 0:02:19.1]} 13... c5 {[%clk
0:02:31.8]} 14. O-O {[%clk 0:02:19]} 14... c4 {[%clk 0:02:25.9]} 15. Qe2 {[%clk
0:02:12.2]} 15... b5 {[%clk 0:02:23.9]} 16. a3 {[%clk 0:02:11.2]} 16... Kf8
{[%clk 0:02:23.7]} 17. Bxe7+ {[%clk 0:02:10.7]} 17... Qxe7 {[%clk 0:02:24.1]}
18. Ng5 {[%clk 0:02:11.8]} 18... Kg7 {[%clk 0:02:22.6]} 19. Kg2 {[%clk
0:02:04.2]} 19... Nf8 {[%clk 0:02:21.7]} 20. Rh1 {[%clk 0:01:55.9]} 20... Nh7
{[%clk 0:02:19.8]} 21. Nf3 {[%clk 0:01:47]} 21... a5 {[%clk 0:02:19.9]} 22. Rhb1
{[%clk 0:01:40.8]} 22... Rc6 {[%clk 0:02:01.6]} 23. b4 {[%clk 0:01:36]} 23...
cxb3 {[%clk 0:01:25.7]} 24. Rxb3 {[%clk 0:01:36.6]} 24... Rhc8 {[%clk
0:01:17.3]} 25. Qxb5 {[%clk 0:01:36.4]} 25... Rxc3 {[%clk 0:01:02.1]} 26. Rxc3
{[%clk 0:01:33]} 26... Rxc3 {[%clk 0:01:02.9]} 27. Qxa5 {[%clk 0:01:34.5]} 27...
Rb3 {[%clk 0:00:47.1]} 28. a4 {[%clk 0:01:35]} 28... Qb7 {[%clk 0:00:40.8]} 29.
Qd2 {[%clk 0:01:19.3]} 29... Rb2 {[%clk 0:00:37.1]} 30. Qd3 {[%clk 0:01:20.4]}
30... Rb3 {[%clk 0:00:37.8]} 31. Qd1 {[%clk 0:01:21.3]} 31... Rb2 {[%clk
0:00:34.9]} 32. Ra3 {[%clk 0:01:11.7]} 32... Qb4 {[%clk 0:00:31.7]} 33. Qd3
{[%clk 0:01:12.7]} 33... Qa5 {[%clk 0:00:18.2]} 34. Ne2 {[%clk 0:00:54.3]} 34...
Nf8 {[%clk 0:00:13.8]} 35. Qc3 {[%clk 0:00:51.7]} 35... Qxc3 {[%clk 0:00:14]}
36. Nxc3 {[%clk 0:00:51.9]} 36... Nd7 {[%clk 0:00:14.4]} 37. a5 {[%clk
0:00:46.7]} 37... Rb8 {[%clk 0:00:11.2]} 38. a6 {[%clk 0:00:46.1]} 38... Ra8
{[%clk 0:00:12.5]} 39. a7 {[%clk 0:00:46.9]} 39... Nb6 {[%clk 0:00:13.4]} 40.
Nb5 {[%clk 0:00:47.9]} 40... Nc8 {[%clk 0:00:14.6]} 41. Nd2 {[%clk 0:00:47.2]}
41... Nfe7 {[%clk 0:00:15.1]} 42. Ra6 {[%clk 0:00:46.5]} 42... Kf8 {[%clk
0:00:12]} 43. Nb3 {[%clk 0:00:47.2]} 43... Nf5 {[%clk 0:00:13.3]} 44. Na5 {[%clk
0:00:45.3]} 44... Ke8 {[%clk 0:00:12.3]} 45. Nc7+ {[%clk 0:00:45.6]} 1-0

[Event "*** Titled Tuesday Blitz"]
[Site "Chess.com"]
[Date "2019.07.02"]
[Round "1"]
[White "PlotnikovPavel"]
[Black "wnstop"]
[Result "0-1"]
[WhiteElo "2321"]
[BlackElo "2666"]
[TimeControl "180+2"]
[EndTime "13:08:32 PDT"]
[Termination "wnstop won by resignation"]

1. d4 {[%clk 0:02:52.4]} 1... Nf6 {[%clk 0:03:00.5]} 2. Nf3 {[%clk 0:02:52.2]}
2... e6 {[%clk 0:03:01.5]} 3. e3 {[%clk 0:02:50.7]} 3... d5 {[%clk 0:03:00.2]}
4. Be2 {[%clk 0:02:51.4]} 4... c5 {[%clk 0:03:01.2]} 5. O-O {[%clk 0:02:52.1]}
5... Nc6 {[%clk 0:03:02.6]} 6. c3 {[%clk 0:02:52.4]} 6... Bd6 {[%clk 0:03:03.9]}
7. a3 {[%clk 0:02:52.5]} 7... O-O {[%clk 0:03:04.7]} 8. dxc5 {[%clk 0:02:52.9]}
8... Bxc5 {[%clk 0:03:04.9]} 9. b4 {[%clk 0:02:54.8]} 9... Bd6 {[%clk
0:03:05.5]} 10. Bb2 {[%clk 0:02:56.7]} 10... Ne5 {[%clk 0:03:06.6]} 11. Nxe5
{[%clk 0:02:56.5]} 11... Bxe5 {[%clk 0:03:08.5]} 12. Qb3 {[%clk 0:02:45.6]}
12... Qc7 {[%clk 0:03:07.5]} 13. g3 {[%clk 0:02:42.9]} 13... Bd7 {[%clk
0:03:07.4]} 14. Nd2 {[%clk 0:02:43]} 14... b5 {[%clk 0:03:04.3]} 15. Nf3 {[%clk
0:02:38]} 15... Bd6 {[%clk 0:03:03]} 16. Rfd1 {[%clk 0:02:27.3]} 16... a5 {[%clk
0:02:51.9]} 17. Rac1 {[%clk 0:02:21.2]} 17... Ne4 {[%clk 0:02:34.7]} 18. Nd2
{[%clk 0:02:16.7]} 18... f5 {[%clk 0:02:29.7]} 19. Nf3 {[%clk 0:01:56.1]} 19...
Be7 {[%clk 0:02:22.9]} 20. Nd4 {[%clk 0:01:55]} 20... Nd6 {[%clk 0:02:22.8]} 21.
Rc2 {[%clk 0:01:44.1]} 21... Bf6 {[%clk 0:02:18.5]} 22. Bc1 {[%clk 0:01:43.1]}
22... g6 {[%clk 0:02:13.2]} 23. bxa5 {[%clk 0:01:24.1]} 23... Rxa5 {[%clk
0:02:12.2]} 24. h4 {[%clk 0:01:11]} 24... Rfa8 {[%clk 0:02:09.2]} 25. h5 {[%clk
0:00:54.2]} 25... Nc4 {[%clk 0:02:08.6]} 26. hxg6 {[%clk 0:00:53]} 26... hxg6
{[%clk 0:02:09.2]} 27. Bf3 {[%clk 0:00:51.7]} 27... Kg7 {[%clk 0:02:05]} 28. Kg2
{[%clk 0:00:50.8]} 28... g5 {[%clk 0:02:03]} 29. g4 {[%clk 0:00:47.7]} 29...
fxg4 {[%clk 0:01:55.6]} 30. Bxg4 {[%clk 0:00:47.8]} 30... Rh8 {[%clk 0:01:57.1]}
31. Nxe6+ {[%clk 0:00:21.6]} 31... Bxe6 {[%clk 0:01:55.3]} 32. Bxe6 {[%clk
0:00:23.5]} 32... Qh2+ {[%clk 0:00:30.5]} 33. Kf1 {[%clk 0:00:21.3]} 33... Qh1+
{[%clk 0:00:30.4]} 34. Ke2 {[%clk 0:00:22]} 34... Qh5+ {[%clk 0:00:31.8]} 35. f3
{[%clk 0:00:20.7]} 35... Qh2+ {[%clk 0:00:29.5]} 36. Kd3 {[%clk 0:00:21.8]}
36... Qh7+ {[%clk 0:00:31]} 37. e4 {[%clk 0:00:21.6]} 37... dxe4+ {[%clk
0:00:27.8]} 38. fxe4 {[%clk 0:00:20.8]} 38... Rd8+ {[%clk 0:00:29.3]} 39. Bd5
{[%clk 0:00:20.7]} 39... Rxd5+ {[%clk 0:00:30.1]} 40. Ke2 {[%clk 0:00:19.1]}
40... Qh2+ {[%clk 0:00:31.5]} 41. Kf3 {[%clk 0:00:19.6]} 41... Qh3+ {[%clk
0:00:33]} 42. Ke2 {[%clk 0:00:20.2]} 42... Qg4+ {[%clk 0:00:34.3]} 43. Kf2
{[%clk 0:00:20.6]} 43... Rxd1 {[%clk 0:00:35.4]} 0-1

[Event "*** Titled Tuesday Blitz"]
[Site "Chess.com"]
[Date "2019.07.02"]
[Round "1"]
[White "DenisQ"]
[Black "Everyfishknows"]
[Result "1-0"]
[WhiteElo "2612"]
[BlackElo "2274"]
[TimeControl "180+2"]
[EndTime "13:08:41 PDT"]
[Termination "DenisQ won by resignation"]

1. Nf3 {[%clk 0:02:32.3]} 1... Nf6 {[%clk 0:02:59.7]} 2. g3 {[%clk 0:02:34.2]}
2... g6 {[%clk 0:03:00.7]} 3. Bg2 {[%clk 0:02:35.7]} 3... Bg7 {[%clk 0:03:02.3]}
4. O-O {[%clk 0:02:37.2]} 4... O-O {[%clk 0:03:03.9]} 5. c4 {[%clk 0:02:39]}
5... d6 {[%clk 0:03:05.1]} 6. Nc3 {[%clk 0:02:40.1]} 6... Nc6 {[%clk 0:03:05.8]}
7. d3 {[%clk 0:02:41.2]} 7... e5 {[%clk 0:03:06.9]} 8. Rb1 {[%clk 0:02:42]} 8...
a5 {[%clk 0:03:08.1]} 9. Bg5 {[%clk 0:02:42.4]} 9... h6 {[%clk 0:02:59.2]} 10.
Bxf6 {[%clk 0:02:42.9]} 10... Bxf6 {[%clk 0:03:01.1]} 11. a3 {[%clk 0:02:44.2]}
11... Re8 {[%clk 0:03:01.9]} 12. b4 {[%clk 0:02:44.7]} 12... axb4 {[%clk
0:03:02.8]} 13. axb4 {[%clk 0:02:46.6]} 13... Bg7 {[%clk 0:03:03.9]} 14. b5
{[%clk 0:02:47.6]} 14... Ne7 {[%clk 0:03:04]} 15. Nd2 {[%clk 0:02:42.1]} 15...
e4 {[%clk 0:02:59.6]} 16. Qc2 {[%clk 0:02:29.6]} 16... exd3 {[%clk 0:02:58.5]}
17. exd3 {[%clk 0:02:30.5]} 17... Nf5 {[%clk 0:02:57.7]} 18. Nb3 {[%clk
0:02:30.7]} 18... Nd4 {[%clk 0:02:44.8]} 19. Nxd4 {[%clk 0:02:31]} 19... Bxd4
{[%clk 0:02:46.7]} 20. Rfe1 {[%clk 0:02:31.4]} 20... Ra7 {[%clk 0:02:01.1]} 21.
Nd5 {[%clk 0:02:21.9]} 21... Rxe1+ {[%clk 0:01:59.6]} 22. Rxe1 {[%clk
0:02:21.8]} 22... Kg7 {[%clk 0:01:44.9]} 23. h4 {[%clk 0:02:15.1]} 23... Bf5
{[%clk 0:01:19.7]} 24. Qe2 {[%clk 0:01:59.3]} 24... Ra3 {[%clk 0:01:15.2]} 25.
Be4 {[%clk 0:01:58.8]} 25... Be6 {[%clk 0:01:07.6]} 26. Nf4 {[%clk 0:01:57.4]}
26... Bc8 {[%clk 0:00:50.7]} 27. Qf3 {[%clk 0:01:54.8]} 27... Ra2 {[%clk
0:00:48.2]} 28. Re2 {[%clk 0:01:52]} 28... Rxe2 {[%clk 0:00:49]} 29. Nxe2 {[%clk
0:01:52.2]} 29... Bb6 {[%clk 0:00:40.7]} 30. Bxb7 {[%clk 0:01:51.7]} 30... Bxb7
{[%clk 0:00:41.9]} 31. Qxb7 {[%clk 0:01:51.7]} 31... Qf6 {[%clk 0:00:43.1]} 32.
Nf4 {[%clk 0:01:49.2]} 32... Qd4 {[%clk 0:00:35.9]} 33. Qf3 {[%clk 0:01:49.1]}
33... Qf6 {[%clk 0:00:15.8]} 34. Kg2 {[%clk 0:01:48.6]} 34... Bc5 {[%clk
0:00:16.5]} 35. Nd5 {[%clk 0:01:47.7]} 35... Qxf3+ {[%clk 0:00:17.5]} 36. Kxf3
{[%clk 0:01:48.3]} 36... Kf8 {[%clk 0:00:05.6]} 37. Nxc7 {[%clk 0:01:47.7]}
37... Ke7 {[%clk 0:00:07]} 38. Nd5+ {[%clk 0:01:47]} 38... Kd7 {[%clk
0:00:07.8]} 39. g4 {[%clk 0:01:43.7]} 39... Bd4 {[%clk 0:00:07.4]} 40. h5 {[%clk
0:01:38.2]} 40... gxh5 {[%clk 0:00:08.2]} 41. gxh5 {[%clk 0:01:38.9]} 41... Ke6
{[%clk 0:00:09.4]} 42. b6 {[%clk 0:01:38.8]} 42... Kd7 {[%clk 0:00:10.6]} 43.
Kg3 {[%clk 0:01:30.9]} 43... Kc6 {[%clk 0:00:06.8]} 44. Ne7+ {[%clk 0:01:26.2]}
44... Kxb6 {[%clk 0:00:05.9]} 45. Nf5 {[%clk 0:01:28.1]} 45... Be5+ {[%clk
0:00:05.5]} 46. f4 {[%clk 0:01:28.6]} 46... Bc3 {[%clk 0:00:05.2]} 47. Nxh6
{[%clk 0:01:29]} 47... Kc5 {[%clk 0:00:06.1]} 48. Nxf7 {[%clk 0:01:27.5]} 48...
Kd4 {[%clk 0:00:06.4]} 49. Nxd6 {[%clk 0:01:23.8]} 49... Kxd3 {[%clk 0:00:07.5]}
50. c5 {[%clk 0:01:24.6]} 50... Bb4 {[%clk 0:00:08]} 51. h6 {[%clk 0:01:23.1]}
51... Bxc5 {[%clk 0:00:07.7]} 52. h7 {[%clk 0:01:24.2]} 52... Bd4 {[%clk
0:00:09.1]} 53. Nf7 {[%clk 0:01:24.7]} 53... Ke4 {[%clk 0:00:08.1]} 54. Kg4
{[%clk 0:01:25.4]} 1-0